[Event "Lidkoping Open 2019"]
[Site "Lidkoping"]
[Date "2019.08.25"]
[Round "6.16"]
[White "Karlsson, Roger"]
[Black "Olsson, Bo"]
[Result "0-1"]
[ECO "C55"]
[WhiteElo "1892"]
[BlackElo "1984"]
[Annotator "NA"]
[PlyCount "66"]
[EventDate "2019.08.19"]
[EventType "swiss"]
[EventCountry "SWE"]
[SourceTitle "playchess.com"]
[Source "ChessBase"]
[SourceQuality "1"]
[TimeControl "2700+10"]

1. e4 {[%emt 0:01:05]} Nf6 {[%emt 0:00:00]} 2. Nc3 {[%emt 0:00:32]} e5 {[%emt 0:00:11]} 3. Nf3 {[%emt 0:00:21]} Nc6 {[%emt 0:00:07]} 4. Bc4 {[%emt 0:00:39]} Nxe4 {[%emt 0:00:38]} 5. Bxf7+ {[%emt 0:02:12]} Kxf7 {[%emt 0:00:24]} 6. Nxe4 {[%emt 0:00:03]} d5 {[%emt 0:00:14]} 7. Neg5+ {[%emt 0:04:39]} Kg8 {[%emt 0:00:20]} 8. d4 {[%emt 0:05:48]} h6 {[%emt 0:01:29]} 9. Nh3 {[%emt 0:05:01]} Bg4 {[%emt 0:00:59]} 10. dxe5 {[%emt 0:01:14]} Nxe5 {[%emt 0:00:59]} 11. Nhg1 {[%emt 0:00:23]} c6 {[%emt 0:06:31]} 12. h3 {[%emt 0:05:25]} Bxf3 {[%emt 0:07:18]} 13. Nxf3 {[%emt 0:00:15]} Qf6 {[%emt 0:02:25]} 14. O-O {[%emt 0:07:55]} Nxf3+ {[%emt 0:00:27]} 15. Qxf3 {[%emt 0:00:31]} Qxf3 {[%emt 0:00:05]} 16. gxf3 {[%emt 0:00:03]} Bd6 {[%emt 0:00:48]} 17. Re1 {[%emt 0:03:23]} Kf7 {[%emt 0:01:16]} 18. Kg2 {[%emt 0:02:01]} Rhe8 {[%emt 0:00:45]} 19. Bd2 {[%emt 0:00:23]} h5 {[%emt 0:08:32]} 20. h4 {[%emt 0:02:44]} Rxe1 {[%emt 0:01:21]} 21. Rxe1 {[%emt 0:00:02]} Re8 {[%emt 0:00:04]} 22. Rxe8 {[%emt 0:01:14]} Kxe8 {[%emt 0:00:01]} 23. f4 {[%emt 0:00:01]} Kf7 {[%emt 0:01:57]} 24. Kf3 {[%emt 0:01:58]} Ke6 {[%emt 0:00:19]} 25. c3 {[%emt 0:00:33]} Kf5 {[%emt 0:00:08]} 26. Be3 {[%emt 0:00:16]} a6 {[%emt 0:00:22]} 27. b4 {[%emt 0:00:21]} Be7 {[%emt 0:00:15]} 28. Kg3 {[%emt 0:00:22]} Bf6 {[%emt 0:00:11]} 29. Bd2 {[%emt 0:00:12]} Ke4 {[%emt 0:00:22]} 30. Be1 {[%emt 0:00:09]} Kd3 {[%emt 0:00:32]} 31. f3 {[%emt 0:00:12]} Bxc3 {[%emt 0:01:51]} 32. Bf2 {[%emt 0:00:02]} Bxb4 {[%emt 0:01:23]} 33. f5 {[%emt 0:00:02]} Bd6+ {[%emt 0:08:16]} 0-1

[Event "Lidkoping Open 2019"]
[Site "Lidkoping"]
[Date "2019.08.25"]
[Round "6.17"]
[White "Andersson, Kjell-Ake"]
[Black "Svedberg, Hans"]
[Result "1-0"]
[ECO "A35"]
[WhiteElo "1922"]
[BlackElo "2008"]
[Annotator "NA"]
[PlyCount "107"]
[EventDate "2019.08.19"]
[EventType "swiss"]
[EventCountry "SWE"]
[SourceTitle "playchess.com"]
[Source "ChessBase"]
[SourceQuality "1"]
[TimeControl "2700+10"]

1. Nf3 {[%emt 0:00:00]} c5 {[%emt 0:00:31]} 2. c4 {[%emt 0:00:02]} Nc6 {[%emt 0:00:21]} 3. Nc3 {[%emt 0:00:03]} e5 {[%emt 0:01:08]} 4. d3 {[%emt 0:00:33]} g6 {[%emt 0:00:14]} 5. g3 {[%emt 0:00:17]} Bg7 {[%emt 0:00:12]} 6. Rb1 {[%emt 0:00:22]} Nge7 {[%emt 0:00:21]} 7. Ne4 {[%emt 0:00:04]} d6 {[%emt 0:01:39]} 8. Bg5 {[%emt 0:00:39]} f5 {[%emt 0:06:30]} 9. Nf6+ {[%emt 0:04:05]} Kf7 {[%emt 0:00:46]} 10. Nd5 {[%emt 0:00:14]} h6 {[%emt 0:00:13]} 11. Bd2 {[%emt 0:04:19]} Be6 {[%emt 0:04:22]} 12. e4 {[%emt 0:04:35]} Qd7 {[%emt 0:05:13]} 13. Bg2 {[%emt 0:01:53]} Rac8 {[%emt 0:07:34]} 14. O-O {[%emt 0:02:43]} Kg8 {[%emt 0:02:24]} 15. Ne1 {[%emt 0:03:23]} Kh7 {[%emt 0:05:08]} 16. b4 {[%emt 0:04:25]} b6 {[%emt 0:00:10]} 17. b5 {[%emt 0:01:15]} Nd4 {[%emt 0:01:53]} 18. a4 {[%emt 0:00:44]} Rhf8 {[%emt 0:00:16]} 19. a5 {[%emt 0:01:30]} Rb8 {[%emt 0:02:12]} 20. axb6 {[%emt 0:00:27]} axb6 {[%emt 0:00:02]} 21. Ra1 {[%emt 0:00:47]} Bxd5 {[%emt 0:00:35]} 22. exd5 {[%emt 0:00:19]} Ra8 {[%emt 0:02:32]} 23. Bc3 {[%emt 0:01:10]} e4 {[%emt 0:00:30]} 24. Rxa8 {[%emt 0:01:53]} Rxa8 {[%emt 0:00:06]} 25. dxe4 {[%emt 0:00:24]} Ra2 {[%emt 0:00:48]} 26. Bd2 {[%emt 0:00:48]} Qa7 {[%emt 0:00:29]} 27. Nd3 {[%emt 0:00:58]} Qa3 {[%emt 0:00:02]} 28. Bf4 {[%emt 0:01:35]} Ne2+ {[%emt 0:00:41]} 29. Kh1 {[%emt 0:00:07]} Nxf4 {[%emt 0:00:09]} 30. Nxf4 {[%emt 0:00:11]} Ra1 {[%emt 0:01:00]} 31. Qe2 {[%emt 0:01:45]} Ra2 {[%emt 0:00:03]} 32. Qd3 {[%emt 0:01:30]} Qb2 {[%emt 0:00:44]} 33. exf5 {[%emt 0:00:22]} Nxf5 {[%emt 0:00:01]} 34. Bh3 {[%emt 0:00:22]} Ra1 {[%emt 0:00:14]} 35. Rxa1 {[%emt 0:00:53]} Qxa1+ {[%emt 0:00:01]} 36. Kg2 {[%emt 0:00:08]} Qe5 {[%emt 0:00:04]} 37. Bxf5 {[%emt 0:00:25]} gxf5 {[%emt 0:00:04]} 38. Ne6 {[%emt 0:00:30]} Bf6 {[%emt 0:00:11]} 39. g4 {[%emt 0:00:37]} Qe4+ {[%emt 0:00:23]} 40. Qxe4 {[%emt 0:00:16]} fxe4 {[%emt 0:00:02]} 41. Kg3 {[%emt 0:00:25]} Be5+ {[%emt 0:00:02]} 42. Kg2 {[%emt 0:00:17]} Kg6 {[%emt 0:00:10]} 43. Nf8+ {[%emt 0:00:35]} Kg5 {[%emt 0:00:25]} 44. Nd7 {[%emt 0:00:02]} Kf4 {[%emt 0:01:29]} 45. Nxb6 {[%emt 0:00:29]} Bc3 {[%emt 0:00:18]} 46. h3 {[%emt 0:00:42]} Ke5 {[%emt 0:00:02]} 47. Nd7+ {[%emt 0:00:14]} Kd4 {[%emt 0:00:02]} 48. b6 {[%emt 0:00:28]} Ba5 {[%emt 0:00:02]} 49. b7 {[%emt 0:00:04]} Bc7 {[%emt 0:00:01]} 50. Nb6 {[%emt 0:01:08]} Kd3 {[%emt 0:00:19]} 51. h4 {[%emt 0:00:01]} Kc3 {[%emt 0:00:22]} 52. g5 {[%emt 0:00:02]} hxg5 {[%emt 0:00:06]} 53. hxg5 {[%emt 0:00:01]} Kb4 {[%emt 0:00:04]} 54. g6 {[%emt 0:00:02]} 1-0

[Event "Lidkoping Open 2019"]
[Site "Lidkoping"]
[Date "2019.08.25"]
[Round "6.18"]
[White "Nordlund, Keith"]
[Black "Frisk, Anders"]
[Result "1/2-1/2"]
[ECO "B03"]
[WhiteElo "2013"]
[BlackElo "1776"]
[Annotator "NA"]
[PlyCount "88"]
[EventDate "2019.08.19"]
[EventType "swiss"]
[EventCountry "SWE"]
[SourceTitle "playchess.com"]
[Source "ChessBase"]
[SourceQuality "1"]
[TimeControl "2700+10"]

1. e4 {[%emt 0:00:00]} Nf6 {[%emt 0:00:00]} 2. e5 {[%emt 0:00:11]} Nd5 {[%emt 0:00:05]} 3. d4 {[%emt 0:00:15]} d6 {[%emt 0:00:08]} 4. exd6 {[%emt 0:00:22]} exd6 {[%emt 0:00:05]} 5. Nf3 {[%emt 0:01:56]} Be7 {[%emt 0:00:38]} 6. c4 {[%emt 0:00:52]} Nb6 {[%emt 0:00:25]} 7. h3 {[%emt 0:01:14]} Bf5 {[%emt 0:02:46]} 8. Bd3 {[%emt 0:00:40]} Bxd3 {[%emt 0:03:21]} 9. Qxd3 {[%emt 0:00:03]} O-O {[%emt 0:01:12]} 10. O-O {[%emt 0:00:10]} Bf6 {[%emt 0:00:59]} 11. Nc3 {[%emt 0:00:26]} Nc6 {[%emt 0:01:14]} 12. Ne4 {[%emt 0:03:59]} h6 {[%emt 0:02:18]} 13. Nxf6+ {[%emt 0:02:00]} Qxf6 {[%emt 0:00:14]} 14. Be3 {[%emt 0:01:20]} Rfe8 {[%emt 0:03:10]} 15. a3 {[%emt 0:00:17]} a5 {[%emt 0:03:03]} 16. b3 {[%emt 0:00:08]} d5 {[%emt 0:03:44]} 17. Rab1 {[%emt 0:02:11]} Qe7 {[%emt 0:04:25]} 18. c5 {[%emt 0:00:48]} Nd7 {[%emt 0:01:42]} 19. Rfc1 {[%emt 0:01:47]} Qe4 {[%emt 0:04:36]} 20. Qxe4 {[%emt 0:02:36]} Rxe4 {[%emt 0:00:14]} 21. b4 {[%emt 0:01:27]} axb4 {[%emt 0:01:43]} 22. axb4 {[%emt 0:00:02]} Nf6 {[%emt 0:03:22]} 23. b5 {[%emt 0:00:55]} Na5 {[%emt 0:01:17]} 24. Ne5 {[%emt 0:01:59]} Nc4 {[%emt 0:03:09]} 25. Nxc4 {[%emt 0:01:09]} dxc4 {[%emt 0:00:02]} 26. Rxc4 {[%emt 0:00:38]} Nd5 {[%emt 0:00:37]} 27. Rb3 {[%emt 0:01:04]} Rae8 {[%emt 0:01:29]} 28. Ra4 {[%emt 0:01:21]} b6 {[%emt 0:01:01]} 29. Ra7 {[%emt 0:00:54]} f5 {[%emt 0:00:48]} 30. cxb6 {[%emt 0:01:19]} cxb6 {[%emt 0:00:10]} 31. Rd7 {[%emt 0:00:20]} Nxe3 {[%emt 0:00:56]} 32. fxe3 {[%emt 0:00:11]} Rxe3 {[%emt 0:00:29]} 33. Rxe3 {[%emt 0:00:12]} Rxe3 {[%emt 0:00:01]} 34. Rd6 {[%emt 0:00:03]} Rd3 {[%emt 0:00:22]} 35. Kf2 {[%emt 0:00:20]} Rd2+ {[%emt 0:00:23]} 36. Kf3 {[%emt 0:00:11]} Kf7 {[%emt 0:00:52]} 37. Rxb6 {[%emt 0:00:55]} Rxd4 {[%emt 0:00:00]} 38. Rb7+ {[%emt 0:00:04]} Kg6 {[%emt 0:00:00]} 39. b6 {[%emt 0:00:05]} Rb4 {[%emt 0:00:00]} 40. Ke3 {[%emt 0:00:42]} Rb2 {[%emt 0:00:00]} 41. Kf3 {[%emt 0:01:51]} Kf6 {[%emt 0:00:13]} 42. Rb8 {[%emt 0:01:21]} Rb3+ {[%emt 0:00:11]} 43. Kf2 {[%emt 0:00:25]} Rb2+ {[%emt 0:00:02]} 44. Kf3 {[%emt 0:00:25]} Rb3+ {[%emt 0:00:54] Ke4 Ke5+} 1/2-1/2

[Event "Lidkoping Open 2019"]
[Site "Lidkoping"]
[Date "2019.08.25"]
[Round "6.19"]
[White "Wiklund, Robert"]
[Black "Arvidsson, Jonas"]
[Result "1-0"]
[ECO "C77"]
[WhiteElo "1785"]
[BlackElo "1993"]
[Annotator "NA"]
[PlyCount "93"]
[EventDate "2019.08.19"]
[EventType "swiss"]
[EventCountry "SWE"]
[SourceTitle "playchess.com"]
[Source "ChessBase"]
[SourceQuality "1"]
[TimeControl "2700+10"]

1. e4 {[%emt 0:00:44]} e5 {[%emt 0:00:00]} 2. Nf3 {[%emt 0:00:05]} Nc6 {[%emt 0:00:08]} 3. Bb5 {[%emt 0:00:11]} a6 {[%emt 0:00:08]} 4. Ba4 {[%emt 0:00:02]} Nf6 {[%emt 0:00:05]} 5. d4 {[%emt 0:00:07]} b5 {[%emt 0:01:28]} 6. Bb3 {[%emt 0:00:02]} Nxd4 {[%emt 0:00:44]} 7. Nxd4 {[%emt 0:00:14]} exd4 {[%emt 0:00:03]} 8. e5 {[%emt 0:00:01]} Ng8 {[%emt 0:01:50]} 9. Qf3 {[%emt 0:01:31]} Qe7 {[%emt 0:04:11]} 10. Qxa8 {[%emt 0:00:21]} Qxe5+ {[%emt 0:00:03]} 11. Kd1 {[%emt 0:00:14]} Kd8 {[%emt 0:00:01]} 12. Re1 {[%emt 0:01:26]} Qxh2 {[%emt 0:00:11]} 13. Bxf7 {[%emt 0:01:16]} Nf6 {[%emt 0:00:26]} 14. Bg5 {[%emt 0:00:30]} Be7 {[%emt 0:00:15]} 15. Bxf6 {[%emt 0:03:34]} Bxf6 {[%emt 0:00:41]} 16. Qe4 {[%emt 0:01:42]} c6 {[%emt 0:00:25]} 17. Nd2 {[%emt 0:07:23]} d5 {[%emt 0:02:31]} 18. Qf3 {[%emt 0:03:47]} h5 {[%emt 0:03:15]} 19. Qg3 {[%emt 0:00:55]} Bg4+ {[%emt 0:00:03]} 20. Nf3 {[%emt 0:00:08]} Qxg3 {[%emt 0:00:15]} 21. fxg3 {[%emt 0:00:04]} d3 {[%emt 0:00:09]} 22. cxd3 {[%emt 0:00:23]} Bxb2 {[%emt 0:00:09]} 23. Rb1 {[%emt 0:00:04]} Bc3 {[%emt 0:00:12]} 24. Re3 {[%emt 0:00:22]} Rf8 {[%emt 0:00:22]} 25. Be6 {[%emt 0:03:00]} Re8 {[%emt 0:00:14]} 26. Kc2 {[%emt 0:05:47]} d4 {[%emt 0:00:26]} 27. Ng5 {[%emt 0:00:29]} dxe3 {[%emt 0:00:21]} 28. Bxg4 {[%emt 0:00:10]} b4 {[%emt 0:01:32]} 29. Bxh5 {[%emt 0:00:29]} g6 {[%emt 0:05:25]} 30. Be2 {[%emt 0:00:46]} Ke7 {[%emt 0:00:06]} 31. Ne4 {[%emt 0:00:43]} Rf8 {[%emt 0:00:55]} 32. Nxc3 {[%emt 0:00:23]} bxc3 {[%emt 0:00:02]} 33. Kxc3 {[%emt 0:00:02]} Rf2 {[%emt 0:00:01]} 34. Bf3 {[%emt 0:00:11]} Rxa2 {[%emt 0:00:20]} 35. Kd4 {[%emt 0:00:36]} e2 {[%emt 0:00:50]} 36. Re1 {[%emt 0:00:10]} Kd6 {[%emt 0:00:02]} 37. Rxe2 {[%emt 0:00:09]} Ra4+ {[%emt 0:00:02]} 38. Kc3 {[%emt 0:00:20]} c5 {[%emt 0:00:08]} 39. Rb2 {[%emt 0:00:28]} Ra3+ {[%emt 0:00:45]} 40. Kc4 {[%emt 0:00:04]} Ra4+ {[%emt 0:00:05]} 41. Kb3 {[%emt 0:00:04]} Rb4+ {[%emt 0:00:09]} 42. Kc3 {[%emt 0:00:02]} a5 {[%emt 0:00:40]} 43. Rxb4 {[%emt 0:00:09]} axb4+ {[%emt 0:00:01]} 44. Kc4 {[%emt 0:00:01]} g5 {[%emt 0:00:23]} 45. d4 {[%emt 0:00:36]} cxd4 {[%emt 0:00:11]} 46. Kxd4 {[%emt 0:00:02]} b3 {[%emt 0:00:01]} 47. Kc3 {[%emt 0:00:01]} 1-0

[Event "Lidkoping Open 2019"]
[Site "Lidkoping"]
[Date "2019.08.25"]
[Round "6.20"]
[White "Beslagic, Smail"]
[Black "Wiman, Kenneth"]
[Result "1-0"]
[ECO "A40"]
[WhiteElo "1853"]
[BlackElo "1868"]
[Annotator "NA"]
[PlyCount "99"]
[EventDate "2019.08.19"]
[EventType "swiss"]
[EventCountry "SWE"]
[SourceTitle "playchess.com"]
[Source "ChessBase"]
[SourceQuality "1"]
[TimeControl "2700+10"]

1. d4 {[%emt 0:00:00]} g6 {[%emt 0:00:19]} 2. Bf4 {[%emt 0:00:07]} Bg7 {[%emt 0:00:22]} 3. Nf3 {[%emt 0:00:15]} c5 {[%emt 0:00:31]} 4. e3 {[%emt 0:00:14]} Qb6 {[%emt 0:00:21]} 5. Qc1 {[%emt 0:03:19]} Nc6 {[%emt 0:01:30]} 6. c3 {[%emt 0:00:14]} Nf6 {[%emt 0:01:18]} 7. Nbd2 {[%emt 0:00:23]} d5 {[%emt 0:01:03]} 8. Be2 {[%emt 0:02:25]} O-O {[%emt 0:00:41]} 9. O-O {[%emt 0:00:43]} Bf5 {[%emt 0:00:35]} 10. h3 {[%emt 0:02:22]} cxd4 {[%emt 0:01:09]} 11. exd4 {[%emt 0:00:40]} Rac8 {[%emt 0:00:32]} 12. Be3 {[%emt 0:01:43]} Qd8 {[%emt 0:04:43]} 13. Nh4 {[%emt 0:03:05]} Bd7 {[%emt 0:04:29]} 14. Qe1 {[%emt 0:05:26]} e5 {[%emt 0:02:35]} 15. dxe5 {[%emt 0:01:15]} Nxe5 {[%emt 0:01:10]} 16. Nhf3 {[%emt 0:00:25]} Nc6 {[%emt 0:00:42]} 17. Nb3 {[%emt 0:03:23]} Ne4 {[%emt 0:01:17]} 18. Rd1 {[%emt 0:02:59]} Be6 {[%emt 0:01:17]} 19. Bd3 {[%emt 0:01:03]} Qc7 {[%emt 0:04:06]} 20. Nfd4 {[%emt 0:02:30]} Bd7 {[%emt 0:02:39]} 21. Nb5 {[%emt 0:03:05]} Qd8 {[%emt 0:02:48]} 22. Bxe4 {[%emt 0:00:20]} dxe4 {[%emt 0:00:13]} 23. Nc5 {[%emt 0:00:39]} Ne5 {[%emt 0:01:06]} 24. Nxe4 {[%emt 0:03:42]} a6 {[%emt 0:02:25]} 25. Nbd6 {[%emt 0:00:43]} Rb8 {[%emt 0:00:49]} 26. f4 {[%emt 0:01:20]} Nc6 {[%emt 0:00:43]} 27. Qf2 {[%emt 0:00:35]} Qe7 {[%emt 0:02:18]} 28. Bc5 {[%emt 0:00:24]} Qe6 {[%emt 0:00:54]} 29. a3 {[%emt 0:03:01]} b6 {[%emt 0:01:45]} 30. Bxb6 {[%emt 0:00:33]} Rxb6 {[%emt 0:01:29]} 31. Qxb6 {[%emt 0:00:06]} Rb8 {[%emt 0:00:10]} 32. Qf2 {[%emt 0:00:13]} Bf8 {[%emt 0:01:06]} 33. f5 {[%emt 0:00:43]} gxf5 {[%emt 0:01:28]} 34. Nc5 {[%emt 0:00:41]} Qe7 {[%emt 0:00:09]} 35. Rfe1 {[%emt 0:00:42]} Be6 {[%emt 0:02:08]} 36. Ndb7 {[%emt 0:00:35]} Rxb7 {[%emt 0:00:00]} 37. Nxb7 {[%emt 0:00:01]} Qxb7 {[%emt 0:00:00]} 38. b4 {[%emt 0:00:10]} Bg7 {[%emt 0:00:00]} 39. Qf3 {[%emt 0:00:07]} Qb6+ {[%emt 0:00:00]} 40. Kh1 {[%emt 0:00:06]} Ne5 {[%emt 0:00:00]} 41. Qa8+ {[%emt 0:00:05]} Bf8 {[%emt 0:00:00]} 42. Rxe5 {[%emt 0:00:04]} Kg7 {[%emt 0:00:00]} 43. Ree1 {[%emt 0:00:05]} Be7 {[%emt 0:00:00]} 44. Qf3 {[%emt 0:00:07]} Bf6 {[%emt 0:00:00]} 45. Qg3+ {[%emt 0:00:15]} Kf8 {[%emt 0:00:00]} 46. Qd6+ {[%emt 0:00:06]} Qxd6 {[%emt 0:00:00]} 47. Rxd6 {[%emt 0:00:01]} Bxc3 {[%emt 0:00:00]} 48. Rexe6 {[%emt 0:00:02]} fxe6 {[%emt 0:00:00]} 49. Rxe6 {[%emt 0:00:01]} Bb2 {[%emt 0:00:00]} 50. Rxa6 {[%emt 0:02:17]} 1-0

[Event "Lidkoping Open 2019"]
[Site "Lidkoping"]
[Date "2019.08.25"]
[Round "6.21"]
[White "Bermann, Martin"]
[Black "Alfven, Jorgen"]
[Result "1/2-1/2"]
[ECO "B92"]
[WhiteElo "1889"]
[BlackElo "1871"]
[Annotator "NA"]
[PlyCount "82"]
[EventDate "2019.08.19"]
[EventType "swiss"]
[EventCountry "SWE"]
[SourceTitle "playchess.com"]
[Source "ChessBase"]
[SourceQuality "1"]
[TimeControl "2700+10"]

1. e4 {[%emt 0:05:18]} c5 {[%emt 0:00:20]} 2. Nf3 {[%emt 0:00:26]} d6 {[%emt 0:00:03]} 3. d4 {[%emt 0:00:07]} cxd4 {[%emt 0:00:02]} 4. Nxd4 {[%emt 0:00:03]} Nf6 {[%emt 0:00:07]} 5. Nc3 {[%emt 0:00:02]} a6 {[%emt 0:00:09]} 6. Be2 {[%emt 0:00:07]} e5 {[%emt 0:00:27]} 7. Nb3 {[%emt 0:00:02]} Be6 {[%emt 0:00:14]} 8. O-O {[%emt 0:00:10]} Be7 {[%emt 0:00:42]} 9. Be3 {[%emt 0:00:03]} Nbd7 {[%emt 0:00:52]} 10. f4 {[%emt 0:00:35]} Qc7 {[%emt 0:00:58]} 11. f5 {[%emt 0:02:00]} Bc4 {[%emt 0:01:15]} 12. Nd2 {[%emt 0:00:13]} Bxe2 {[%emt 0:01:15]} 13. Qxe2 {[%emt 0:00:13]} b5 {[%emt 0:01:43]} 14. a3 {[%emt 0:00:19]} Rc8 {[%emt 0:02:35]} 15. Rac1 {[%emt 0:00:59]} Nb6 {[%emt 0:00:15]} 16. h3 {[%emt 0:01:45]} d5 {[%emt 0:03:42]} 17. exd5 {[%emt 0:00:27]} Nbxd5 {[%emt 0:00:09]} 18. Nxd5 {[%emt 0:01:31]} Nxd5 {[%emt 0:00:11]} 19. Kh1 {[%emt 0:00:44]} O-O {[%emt 0:06:36]} 20. Ne4 {[%emt 0:02:15]} Nf6 {[%emt 0:01:10]} 21. Nd2 {[%emt 0:03:57]} Rfd8 {[%emt 0:03:45]} 22. Bg5 {[%emt 0:02:00]} h6 {[%emt 0:00:46]} 23. Bxf6 {[%emt 0:00:03]} Bxf6 {[%emt 0:00:18]} 24. Ne4 {[%emt 0:00:09]} Qe7 {[%emt 0:03:38]} 25. c3 {[%emt 0:01:33]} Rd5 {[%emt 0:04:54]} 26. Qf3 {[%emt 0:02:03]} Rcd8 {[%emt 0:01:40]} 27. Rcd1 {[%emt 0:00:28]} Rxd1 {[%emt 0:02:20]} 28. Rxd1 {[%emt 0:00:02]} Bg5 {[%emt 0:01:30]} 29. Qe2 {[%emt 0:05:44]} Qc7 {[%emt 0:02:01]} 30. Qg4 {[%emt 0:03:00]} Rxd1+ {[%emt 0:01:05]} 31. Qxd1 {[%emt 0:01:32]} Qc4 {[%emt 0:01:42]} 32. Qe1 {[%emt 0:05:05]} Bf4 {[%emt 0:00:22]} 33. f6 {[%emt 0:02:38]} g6 {[%emt 0:00:46]} 34. Qb1 {[%emt 0:01:09]} Qe2 {[%emt 0:00:27]} 35. Kg1 {[%emt 0:00:41]} Qe3+ {[%emt 0:00:04]} 36. Kh1 {[%emt 0:00:02]} Qc1+ {[%emt 0:02:57]} 37. Qxc1 Bxc1 {[%emt 0:00:10]} 38. Nc5 {[%emt 0:03:55]} Bxb2 {[%emt 0:00:10]} 39. Nxa6 {[%emt 0:00:10]} Bxa3 {[%emt 0:00:10]} 40. Nc7 Bb2 {[%emt 0:00:10]} 41. Nxb5 {[%emt 0:00:20]} Bc1 {[%emt 0:00:10]} 1/2-1/2

[Event "Lidkoping Open 2019"]
[Site "Lidkoping"]
[Date "2019.08.25"]
[Round "6.23"]
[White "Pavlic, Oliver"]
[Black "Isacsson, Jorgen"]
[Result "1-0"]
[ECO "E95"]
[WhiteElo "1856"]
[BlackElo "1731"]
[Annotator "NA"]
[PlyCount "67"]
[EventDate "2019.08.19"]
[EventType "swiss"]
[EventCountry "SWE"]
[SourceTitle "playchess.com"]
[Source "ChessBase"]
[SourceQuality "1"]
[TimeControl "2700+10"]

1. d4 {[%emt 0:00:00]} Nf6 {[%emt 0:00:00]} 2. c4 {[%emt 0:00:00]} g6 {[%emt 0:00:11]} 3. Nc3 {[%emt 0:00:00]} Bg7 {[%emt 0:00:05]} 4. e4 {[%emt 0:00:00]} d6 {[%emt 0:00:04]} 5. Nf3 {[%emt 0:00:02]} O-O {[%emt 0:00:05]} 6. Be2 {[%emt 0:00:02]} c6 {[%emt 0:45:35]} 7. O-O {[%emt 0:00:56]} Nbd7 {[%emt 0:00:10]} 8. Re1 {[%emt 0:04:08]} e5 {[%emt 0:00:00]} 9. Bf1 {[%emt 0:00:03]} Qe7 {[%emt 0:00:00]} 10. Rb1 {[%emt 0:01:49]} h6 {[%emt 0:00:00]} 11. b4 {[%emt 0:39:50]} Nh5 {[%emt 0:00:00]} 12. Qd2 {[%emt 0:00:10]} g5 {[%emt 0:00:50]} 13. h3 {[%emt 0:00:00]} Nf4 {[%emt 0:00:00]} 14. Ba3 {[%emt 0:00:20]} Rd8 {[%emt 0:00:00]} 15. b5 {[%emt 0:00:10]} h5 {[%emt 0:00:30]} 16. g3 {[%emt 0:00:10]} g4 {[%emt 0:00:00]} 17. gxf4 {[%emt 0:00:00]} gxf3 {[%emt 0:00:00]} 18. fxe5 {[%emt 0:00:00]} Qh4 {[%emt 0:00:00]} 19. exd6 {[%emt 0:00:30]} Nf8 {[%emt 0:00:00]} 20. Qe3 {[%emt 0:00:00]} Bxh3 {[%emt 0:00:00]} 21. Qxf3 {[%emt 0:00:00]} Qg5+ {[%emt 0:01:00]} 22. Bg2 {[%emt 0:00:30]} Bg4 {[%emt 0:00:00]} 23. Qe3 {[%emt 0:00:10]} Qh4 {[%emt 0:00:00]} 24. e5 {[%emt 0:00:10]} Kh8 {[%emt 0:00:00]} 25. bxc6 {[%emt 0:00:00]} bxc6 {[%emt 0:00:00]} 26. Qg3 {[%emt 0:00:00]} Qg5 {[%emt 0:00:00]} 27. f3 {[%emt 0:00:00]} Qd2 {[%emt 0:00:00]} 28. fxg4 {[%emt 0:00:00]} Qxd4+ {[%emt 0:00:00]} 29. Kh1 {[%emt 0:00:00]} hxg4 {[%emt 0:00:00]} 30. Re4 {[%emt 0:00:00]} Qd2 {[%emt 0:00:00]} 31. Rxg4 {[%emt 0:00:00]} Ng6 {[%emt 0:01:40]} 32. Qh2+ {[%emt 0:00:00]} Kg8 {[%emt 0:00:00]} 33. Rxg6 {[%emt 0:00:28]} fxg6 {[%emt 0:00:00]} 34. Bd5+ {[%emt 0:00:04]} 1-0

[Event "Lidkoping Open 2019"]
[Site "Lidkoping"]
[Date "2019.08.25"]
[Round "7.1"]
[White "Ernst, Thomas"]
[Black "Nygren, Kim"]
[Result "0-1"]
[ECO "B33"]
[WhiteElo "2329"]
[BlackElo "2171"]
[Annotator "ChessBase"]
[PlyCount "76"]
[EventDate "2019.08.19"]
[EventType "swiss"]
[EventCountry "SWE"]
[SourceTitle "playchess.com"]
[Source "ChessBase"]
[SourceQuality "1"]
[TimeControl "2700+10"]

1. e4 {[%emt 0:00:00]} c5 {[%emt 0:00:00]} 2. Nf3 {[%emt 0:00:00]} Nc6 {[%emt 0:00:00]} 3. d4 {[%emt 0:00:01]} cxd4 {[%emt 0:00:00]} 4. Nxd4 {[%emt 0:00:02]} Nf6 {[%emt 0:00:06]} 5. Nc3 {[%emt 0:00:03]} e5 {[%emt 0:00:06]} 6. Ndb5 {[%emt 0:00:04]} d6 {[%emt 0:00:07]} 7. Bg5 {[%emt 0:00:06]} a6 {[%emt 0:00:06]} 8. Na3 {[%emt 0:00:06]} b5 {[%emt 0:00:08]} 9. Bxf6 {[%emt 0:00:04]} gxf6 {[%emt 0:00:13]} 10. Nd5 {[%emt 0:00:05]} Bg7 {[%emt 0:00:21]} 11. Bd3 {[%emt 0:00:07]} Ne7 {[%emt 0:00:36]} 12. Nxe7 {[%emt 0:00:04]} Qxe7 {[%emt 0:00:14]} 13. c4 {[%emt 0:00:08]} f5 {[%emt 0:02:36]} 14. O-O {[%emt 0:00:36]} Bb7 {[%emt 0:03:23]} 15. Qf3 {[%emt 0:05:35]} f4 {[%emt 0:05:33]} 16. cxb5 {[%emt 0:00:23]} axb5 {[%emt 0:01:24]} 17. Nxb5 {[%emt 0:00:59]} O-O {[%emt 0:00:29]} 18. Nc3 {[%emt 0:01:25]} f5 {[%emt 0:00:47]} 19. Bc4+ {[%emt 0:01:36]} Kh8 {[%emt 0:00:05]} 20. Bd5 {[%emt 0:00:13]} fxe4 {[%emt 0:02:22]} 21. Qxe4 {[%emt 0:01:26]} Rab8 {[%emt 0:02:06]} 22. Rad1 {[%emt 0:05:06]} Ba6 {[%emt 0:01:01]} 23. Bb3 {[%emt 0:01:25]} Rxb3 {[%emt 0:03:33]} 24. axb3 {[%emt 0:00:08]} f3 {[%emt 0:00:03]} 25. gxf3 {[%emt 0:02:43]} Bb7 {[%emt 0:00:56]} 26. Nd5 {[%emt 0:00:28]} Qd8 {[%emt 0:04:27]} 27. Qb4 {[%emt 0:04:10]} Qd7 {[%emt 0:02:19]} 28. Rd3 {[%emt 0:01:33]} Bh6 {[%emt 0:01:58]} 29. Qh4 {[%emt 0:02:14]} Rg8+ {[%emt 0:06:43]} 30. Kh1 {[%emt 0:00:07]} Bg5 {[%emt 0:00:01]} 31. Qh5 {[%emt 0:03:37]} Qf5 {[%emt 0:01:51]} 32. Rfd1 {[%emt 0:00:51]} e4 {[%emt 0:00:13]} 33. Ne3 {[%emt 0:03:14]} Qc5 {[%emt 0:03:22]} 34. Rxd6 {[%emt 0:00:34]} Bxe3 {[%emt 0:00:05]} 35. Qxc5 {[%emt 0:00:07]} Bxc5 {[%emt 0:00:01]} 36. Rd7 {[%emt 0:00:52]} e3 {[%emt 0:00:17]} 37. Rxb7 {[%emt 0:00:34]} exf2 {[%emt 0:00:06]} 38. Rbd7 {[%emt 0:00:29]} Rg1+ {[%emt 0:03:42]} 0-1